Cogmind - Beta 10.2 @@@ ROGUE MODE // 2020.12.15 @ 01:35:44 Player: aperiodic Result: Destroyed by as-83175 with Assembled P-torch Performance ------------- Evolutions (4) 2000 Regions Visited (17) 3400 Robots Destroyed (146) 730 Value Destroyed (4251) 4251 Prototype IDs (50) 1000 Alien Tech Used (0) 0 Bonus (3524) 3524 TOTAL SCORE: 14905 Bonus ------- High Alert Combat Kills 144 Follower Combat Kills 1746 Met Data Miner 300 Destroyed Z-Imprinter 1000 Triggered Deep Caves Wall 500 Exposed GOLEM Chamber 500 Friendly Fire -666 Cogmind --------- Core Integrity 0/850 Matter 18/300 Energy 1070/1310 System Corruption 7% Temperature Cool (40) Movement Walking (150) Location -6/Deep Caves Parts ------- > --- POWER (1) -------- Fission Core > --- PROPULSION (2) --- Assembled Alloy Leg Assembled Alloy Leg > --- UTILITY (9) ------ Assembled Nanovents Assembled Nanovents Assembled Biocell Array Assembled Suspension Frame Experimental Sensor Array Assembled Combat Suite Assembled Alloy Armor GOLEM Unit > --- WEAPON (3) ------- Assembled Focal Cannon Advanced EMP Blaster > --- INVENTORY (4) ---- (None) Peak State ------------ > --- POWER ------------ (None) > --- PROPULSION ------- Assembled Alloy Leg Assembled Alloy Leg > --- UTILITY ---------- Assembled Nanovents Assembled Nanovents Assembled Nanovents Assembled Biocell Array Assembled Suspension Frame Assembled Combat Suite Assembled Alloy Armor GOLEM Unit > --- WEAPON ----------- Assembled Focal Cannon Assembled Focal Cannon Assembled Focal Cannon > --- INVENTORY -------- (None) [Rating: 123] Favorites ----------- Power Heavy Ion Engine Engine Heavy Ion Engine Power Core Fission Core Reactor Zionite Light DM Reactor Propulsion Armored Wheel Treads Light Treads Leg Assembled Alloy Leg Wheel Armored Wheel Flight Unit Experimental Cesium-ion Thruster Utility Hacking Suite Device Experimental Sensor Array Storage Humpback Processor Advanced Signal Interpreter Hackware Hacking Suite Protection Hardened Medium Armor Plating Weapon Coil Gun Energy Gun Advanced Beam Rifle Energy Cannon Assembled Focal Cannon Ballistic Gun Coil Gun Ballistic Cannon Bore Cannon Launcher Rocket Array Special Weapon Improved Plasma Cutter Impact Weapon Hammer Slashing Weapon Phasing Sabre Piercing Weapon CR-A16's Pointy Stick Build | -11 -10 -10 -10 -9 -8 -7 -7 -7 -7 -7 -7 -6 -6 -6 -6 -6 -6 ------- Run | Scr Mat Min Exi Min Mat Fac Was Fac Low Low Dat Pro Fac Low Low Zio Dee Slots Evolved 8 | . . . . . 4 2 . . . . . . 2 . . . . Power . | . . . . . . . . . . . . . . . . . . Propulsion . | . . . . . . . . . . . . . . . . . . Utility 7 | . . . . . 3 2 . . . . . . 2 . . . . Weapon 1 | . . . . . 1 . . . . . . . . . . . . Parts Attached 256 | 7 24 7 1 6 44 26 9 10 14 4 . . 33 3 3 12 53 Power 12 | 1 2 . . 1 2 1 . . . . . . 2 . . 1 2 Engine 7 | 1 2 . . 1 2 1 . . . . . . . . . . . Core 4 | . . . . . . . . . . . . . 2 . . 1 1 Reactor 1 | . . . . . . . . . . . . . . . . . 1 Propulsion 51 | 3 15 2 . 3 8 2 1 1 . . . . 2 . . 4 10 Treads 17 | . 8 2 . 1 6 . . . . . . . . . . . . Leg . | . . . . . . . . . . . . . . . . . . Wheel 27 | 3 7 . . 2 2 2 1 1 . . . . 2 . . 2 5 Hover . | . . . . . . . . . . . . . . . . . . Flight 7 | . . . . . . . . . . . . . . . . 2 5 Utility 80 | 1 2 . 1 . 10 11 2 3 6 2 . . 15 1 2 4 20 Device 30 | . . . . . 5 3 2 1 3 1 . . 6 . 1 1 7 Storage 11 | 1 1 . 1 . . . . . 1 . . . 3 . . 2 2 Processor 3 | . . . . . . 1 . . . . . . 1 . . . 1 Hackware 4 | . . . . . 1 1 . . . . . . 2 . . . . Protection 32 | . 1 . . . 4 6 . 2 2 1 . . 3 1 1 1 10 Artifact . | . . . . . . . . . . . . . . . . . . Weapon 113 | 2 5 5 . 2 24 12 6 6 8 2 . . 14 2 1 3 21 Energy Gun 20 | . 2 1 . 2 3 4 1 . . . . . 1 . . . 6 Energy Cannon 4 | . . . . . 1 . . . . . . . . . . . 3 Ballistic Gun 47 | 2 2 3 . . 13 6 3 3 4 . . . 5 1 . . 5 Ballistic Cannon 10 | . . . . . 2 1 1 1 4 1 . . . . . . . Launcher 14 | . . . . . 2 1 1 2 . 1 . . 3 1 1 . 2 Special Weapon 4 | . 1 1 . . 1 . . . . . . . . . . 1 . Impact Weapon 2 | . . . . . 2 . . . . . . . . . . . . Slashing Weapon 10 | . . . . . . . . . . . . . 5 . . 1 4 Piercing Weapon 2 | . . . . . . . . . . . . . . . . 1 1 Special Melee Weapon . | . . . . . . . . . . . . . . . . . . Unidentified Prototypes 11 | . . . . . 3 1 . 1 . . . . 1 . . . 5 Parts Lost 49 | . 1 5 . 1 1 . 1 . 5 1 . . 2 1 . . 31 Power 2 | . . . . 1 . . . . . . . . . . . . 1 Propulsion 7 | . . 2 . . . . . . . . . . 1 . . . 4 Utility 24 | . . 1 . . . . . . 3 1 . . 1 1 . . 17 Weapon 16 | . 1 2 . . 1 . 1 . 2 . . . . . . . 9 Highest Loss Streak 16 | . 1 4 . 1 1 . 1 . 5 1 . . 2 1 . . 16 Average Slot Usage (%) 86 | . 94 96 85 83 88 91 79 92 89 91 92 92 91 92 93 91 71 Engine 5 | . 14 14 14 12 8 6 7 7 7 7 7 7 . . . . . Core 1 | . . . . . . . . . . . . . 5 6 6 6 1 Treads 6 | . 20 27 28 12 11 9 . . . . . . . . . . . Leg 1 | . . . . . . . . . . . . . . . . . 6 Wheel 8 | . 7 . . 15 6 5 10 15 15 15 15 15 13 13 13 12 3 Device 9 | . . . . . 8 12 14 11 7 6 7 7 4 6 5 6 21 Storage 7 | . 14 14 14 14 9 7 7 7 6 7 7 7 6 6 6 6 4 Processor 4 | . . . . . . 4 7 7 7 7 7 7 12 7 6 6 6 Hackware 10 | . . . . . 6 14 15 15 15 15 15 15 20 26 26 25 5 Protection 5 | . 8 10 . . 10 4 . 3 5 7 7 7 5 4 6 5 4 Energy Gun 4 | . 2 14 14 14 8 6 1 7 2 . . . 2 . . . . Energy Cannon 1 | . . . . . . . . . . . . . . . . . 4 Ballistic Gun 9 | . 25 14 14 14 16 7 3 12 8 7 7 7 9 12 13 11 . Ballistic Cannon 1 | . . . . . . 6 3 . 9 11 7 7 . . . . . Launcher 1 | . . . . . . . 5 2 . 3 7 7 1 . 2 5 . Slashing Weapon 1 | . . . . . . . . . . . . . 4 6 3 . 3 Naked Turns . | . . . . . . . . . . . . . . . . . . Heaviest Build 126 | 12 44 44 88 93 105 112 114 116 119 126 116 116 116 106 117 119 119 Greatest Support 70 | 26 40 40 40 48 51 51 24 24 24 24 24 24 24 24 24 24 70 Greatest Overweight (x) 8 | 2 1 1 2 4 5 8 8 4 4 5 4 4 4 4 4 4 4 Average Overweight (x) 2 | . . . 1 3 2 2 6 4 3 4 4 4 4 4 4 3 1 Largest Inventory Capacity 44 | 6 12 12 24 24 24 24 24 24 24 24 24 24 44 24 24 24 24 Average Capacity 18 | 5 8 12 22 24 24 24 24 24 23 24 24 24 24 24 24 22 7 Most Carried 24 | 6 12 12 11 20 24 24 24 24 24 24 23 24 24 24 23 24 22 Average Carried 16 | 3 7 11 10 17 23 23 23 23 19 23 23 23 23 23 23 22 4 Final Capacity 24 | 6 12 12 24 24 24 24 24 24 24 24 24 24 24 24 24 24 4 Final Carried 24 | 5 12 8 11 20 24 24 24 24 24 23 23 24 24 23 23 22 . Class Distribution -------------------- 26% | Hauler-Mutant 19% | Hacker-Mutant 17% | Mutant 13% | Hauler-Tank 7% | Hauler-Skirmisher 5% | Golem Dominant Class ---------------- Mutant | -10/Materials Mutant | -10/Mines Hauler-Mutant | -10/Exiles Hauler-Mutant | -9/Mines Hauler-Tank | -8/Materials Hauler-Mutant | -7/Factory Hauler-Mutant | -7/Waste Hauler-Skirmisher | -7/Factory Hauler-Skirmisher | -7/Lower Caves Hauler-Mutant | -7/Lower Caves Hauler-Mutant | -7/Data Miner Hauler-Mutant | -6/Proximity Caves Hacker-Mutant | -6/Factory Hacker-Mutant | -6/Lower Caves Hacker-Mutant | -6/Lower Caves Hacker-Mutant | -6/Zion Mutant | -6/Deep Caves Resources | -11 -10 -10 -10 -9 -8 -7 -7 -7 -7 -7 -7 -6 -6 -6 -6 -6 -6 ----------- Run | Scr Mat Min Exi Min Mat Fac Was Fac Low Low Dat Pro Fac Low Low Zio Dee Matter Collected 5321 | 221 599 179 20 66 1090 756 295 190 442 228 . 78 550 66 2 58 481 Remotely . | . . . . . . . . . . . . . . . . . . Salvage Created 7254 | 20 763 239 . 130 2052 1185 156 231 244 204 . . 1020 187 66 . 757 Parts 338 | 5 50 17 . 7 101 49 . 16 13 3 . . 37 5 9 . 26 Haulers Intercepted 13 | . 1 . . . 6 3 . 1 . . . . 2 . . . . Recyclers Shooed 5 | . 2 . . . 2 1 . . . . . . . . . . . Parts Field Recycled . | . . . . . . . . . . . . . . . . . . Retrieved Matter . | . . . . . . . . . . . . . . . . . . Parts Self-Destructed 23 | . . . . . . . . . 1 1 . 7 . 1 10 3 . Prevented 5 | . . . . . . . . . . 1 . . . 4 . . . Kills | -11 -10 -10 -10 -9 -8 -7 -7 -7 -7 -7 -7 -6 -6 -6 -6 -6 -6 ------- Run | Scr Mat Min Exi Min Mat Fac Was Fac Low Low Dat Pro Fac Low Low Zio Dee Combat Hostiles Destroyed 121 | . 16 9 . 3 25 8 1 2 4 2 . . 8 3 4 . 36 Melee 7 | . . . . . . . . . . . . . . . . . 7 Guns 61 | . 16 9 . 3 18 5 . 1 4 . . . 1 2 . . 2 Cannons 14 | . . . . . 1 3 . . . . . . . . . . 10 AOE 34 | . . . . . 6 . 1 1 . 2 . . 4 . 4 . 16 Classes Destroyed 20 | 1 5 2 . 1 3 3 1 . 1 . . . . 1 . . 2 Worker 11 | . . 2 . . 2 6 . 1 . . . . . . . . . Builder 3 | . . . . . 2 . . . . . . . 1 . . . . Tunneler 1 | 1 . . . . . . . . . . . . . . . . . Hauler 13 | . 1 . . . 6 3 . 1 . . . . 2 . . . . Recycler 15 | . 2 . . . 6 5 . . . . . . 2 . . . . Minesweeper 1 | . . . . . . . . . 1 . . . . . . . . Mechanic 1 | . . . . . . 1 . . . . . . . . . . . Operator 1 | . . . . . 1 . . . . . . . . . . . . Watcher 12 | . 3 . . . 5 2 . . . . . . 2 . . . . Swarmer 19 | . 6 4 . . 3 . . . . 2 . . . . 4 . . Grunt 38 | . 10 2 . 2 13 3 . 1 . . . . 5 2 . . . Brawler 1 | . . . . 1 . . . . . . . . . . . . . Duelist 1 | . . . . . . . . . . . . . . 1 . . . Sentry 11 | . . . . . 9 2 . . . . . . . . . . . Hunter 3 | . . . . . . 1 . . . . . . 2 . . . . Programmer 4 | . . . . . . 2 . 1 . . . . 1 . . . . Compactor 1 | . . . . . . . 1 . . . . . . . . . . Z-Technician 5 | . . . . . . . . . . . . . . . . . 5 Decomposer 1 | . . . . . . . . . . 1 . . . . . . . Assembler 1 | . . . . . . . . . . . . . . . . . 1 Assembled 36 | . . 3 . . . . . . . . . . . . . . 33 Golem 3 | . . . . . . . . . . . . . . . . . 3 Surgeon 2 | . . . . . . . . . . 2 . . . . . . . Thug 6 | . . . . . . 1 . 1 4 . . . . . . . . Best Kill Streak 15 | 1 3 3 . 2 7 5 1 2 4 2 . . 4 3 4 . 15 Combat Bots Only 15 | . 3 3 . 2 5 2 1 1 4 2 . . 4 3 4 . 15 Max Kills in Single Turn 6 | 1 1 1 . 1 2 2 1 1 1 1 . . 3 1 4 . 6 Gunslinging 1 | . . . . . . 1 . . . . . . . . . . . Exploded 6 | . . . . . 2 . 1 1 . 1 . . 3 . 4 . 6 Melee 1 | . . . . . . . . . . . . . . . . . 1 Uniques/NPCs Destroyed 1 | . . . . . . . . . . . . . . . . . 1 Z-Imprinter (-6/Deep Caves) Combat | -11 -10 -10 -10 -9 -8 -7 -7 -7 -7 -7 -7 -6 -6 -6 -6 -6 -6 -------- Run | Scr Mat Min Exi Min Mat Fac Was Fac Low Low Dat Pro Fac Low Low Zio Dee Damage Taken 8459 | . 530 658 . 52 1128 483 57 68 677 191 . 16 683 107 129 . 3680 Core 1394 | . 114 107 . . 119 89 . 23 83 . . . 59 . 17 . 783 Absorbed by Shields 16 | . . . . . . . . . . . . . . . . . 16 Core Remaining (%) 65 | 100 . . . 11 78 . . . . . . 72 . . . . . Volleys Fired 459 | 3 69 45 . 11 106 65 11 13 22 11 . . 36 7 1 . 59 Largest 3 | 2 2 2 . 2 3 3 3 3 3 3 . . 3 2 1 . 3 Hottest 189 | 40 100 100 . 100 132 137 150 165 171 147 . . 141 60 45 . 189 Shots Fired 914 | 6 133 84 . 22 268 132 20 32 54 17 . . 58 9 1 . 78 Gun 692 | 6 128 83 . 22 248 74 . 27 30 4 . . 39 4 . . 27 Cannon 162 | . . . . . 12 58 16 3 24 8 . . . . . . 41 Launcher 50 | . . . . . 7 . 4 2 . 5 . . 19 5 1 . 7 Special 10 | . 5 1 . . 1 . . . . . . . . . . . 3 Kinetic 602 | 6 115 41 . 11 183 99 16 18 54 12 . . 32 4 . . 11 Thermal 203 | . 18 26 . 3 64 22 . 12 . . . . 7 . . . 51 Explosive 19 | . . . . . 7 . 4 . . . . . 1 . 1 . 6 Electromagnetic 90 | . . 17 . 8 14 11 . 2 . 5 . . 18 5 . . 10 Robot Hit Streak 36 | 3 26 36 . 14 14 10 14 15 9 3 . . 9 4 . . 9 Robot Miss Streak 12 | 2 4 2 . 8 6 5 2 7 12 3 . . 4 2 . . 5 Penetration Max . | . . . . . . . . . . . . . . . . . . Secondary Targets 10 | . 1 3 . . 2 1 . . 2 . . . . . . . 1 Max Gunslinging Chain 1 | . 1 1 . . 1 1 . . 1 . . . . . . . 1 Shots Hit Robots 577 | 3 88 67 . 11 144 91 15 16 29 2 . . 37 4 . . 70 Core Hits 362 | 2 37 19 . 6 83 55 5 10 25 6 . . 27 5 5 . 77 Critical Hits 17 | . 2 . . . 2 6 1 1 3 . . . 1 . . . 1 Critical Kills 4 | . . . . . 1 2 . . . . . . 1 . . . . Critical Parts Destroyed 11 | . 2 . . . 1 4 . 1 3 . . . . . . . . Melee Attacks 98 | . . . . . 8 . . . . . . . 17 1 3 18 51 Impact 8 | . . . . . 8 . . . . . . . . . . . . Slashing 89 | . . . . . . . . . . . . . 17 1 3 18 50 Piercing 1 | . . . . . . . . . . . . . . . . . 1 Sneak Attacks 10 | . . . . . . . . . . . . . 5 . . . 5 Combat Hostiles . | . . . . . . . . . . . . . . . . . . Follow-up Attacks 1 | . . . . . . . . . . . . . . . . . 1 Damage Inflicted 16961 | 36 893 764 . 198 3161 1959 1342 497 686 223 . . 2227 316 172 . 4487 Guns 6945 | 36 893 764 . 160 2318 1088 . 309 471 17 . . 520 72 . . 297 Cannons 2659 | . . . . . 140 810 440 28 215 . . . . . . . 1026 Explosions 4415 | . . . . 38 703 61 902 160 . 206 . . 1076 244 172 . 853 Melee 2942 | . . . . . . . . . . . . . 631 . . . 2311 Ramming . | . . . . . . . . . . . . . . . . . . Kinetic 6021 | 36 825 238 . 40 1358 1402 440 207 686 17 . . 468 72 . . 232 Thermal 2914 | . 68 296 . 134 940 376 . 130 . . . . 52 . . . 918 Explosive 2958 | . . . . . 703 . 902 . . . . . 350 . 172 . 831 Electromagnetic 2126 | . . 230 . 24 160 181 . 160 . 206 . . 726 244 . . 195 Impact . | . . . . . . . . . . . . . . . . . . Slashing 2910 | . . . . . . . . . . . . . 631 . . . 2279 Piercing 32 | . . . . . . . . . . . . . . . . . 32 Highest Corruption 7 | . . . . . . . . . . . . . 1 1 1 1 7 Average Corruption 3 | . . . . . . . . . . . . . 1 1 1 1 6 Corruption Purged . | . . . . . . . . . . . . . . . . . . Effects 84 | . . . . . . . . . . . . . 8 3 3 . 70 Message Errors 23 | . . . . . . . . . . . . . 1 2 3 . 17 Matter Fused 14 | . . . . . . . . . . . . . . . . . 14 Heat Flow Errors 12 | . . . . . . . . . . . . . . . . . 12 Energy Discharges 12 | . . . . . . . . . . . . . 3 1 . . 8 Data Loss (minor) 13 | . . . . . . . . . . . . . 3 . . . 10 Data Loss (major) 3 | . . . . . . . . . . . . . . . . . 3 Misfires 4 | . . . . . . . . . . . . . . . . . 4 Targeting Errors 2 | . . . . . . . . . . . . . 1 . . . 1 Weapon Failures 1 | . . . . . . . . . . . . . . . . . 1 Overload Shots . | . . . . . . . . . . . . . . . . . . Overflow Damage 586 | . . . . . 54 5 . . 13 14 . . 149 11 . . 340 Projectiles 23 | . . . . . . 5 . . 13 . . . . . . . 5 Explosions 108 | . . . . . 54 . . . . 14 . . 2 11 . . 27 Melee 455 | . . . . . . . . . . . . . 147 . . . 308 Knockbacks 7 | . . . . . . 4 . . 3 . . . . . . . . Impact . | . . . . . . . . . . . . . . . . . . Kinetic 7 | . . . . . . 4 . . 3 . . . . . . . . Secondary . | . . . . . . . . . . . . . . . . . . Self-Inflicted Damage 161 | . . . . . . . . . . 63 . . 32 14 . . 52 Shots 9 | . . . . . . . . . . 3 . . 2 1 . . 3 Rammed . | . . . . . . . . . . . . . . . . . . Targets Rammed . | . . . . . . . . . . . . . . . . . . Kicked . | . . . . . . . . . . . . . . . . . . Crushed . | . . . . . . . . . . . . . . . . . . Highest Temperature 429 | . 160 196 . 135 220 42 207 162 429 211 . . 138 . . . 225 Average Temperature 68 | . 31 66 . 43 58 15 113 48 162 87 . . 53 . . . 88 Received Heat Transfer 2333 | . 162 162 . 24 531 153 . . 288 . . . 93 45 . . 875 Effects 6 | . . . . . 1 . . . 5 . . . . . . . . Energy Bleed 1 | . . . . . 1 . . . . . . . . . . . . Interference 3 | . . . . . . . . . 3 . . . . . . . . Short Circuit 1 | . . . . . . . . . 1 . . . . . . . . Damage (minor) 1 | . . . . . . . . . 1 . . . . . . . . Siege Activations . | . . . . . . . . . . . . . . . . . . Robots Corrupted 6 | . . . . . 1 . . . . . . . 3 1 . . 1 Combat Hostiles 5 | . . . . . . . . . . . . . 3 1 . . 1 Parts Fried 8 | . . 1 . . . . . . . 1 . . 4 2 . . . Impact Corruptions . | . . . . . . . . . . . . . . . . . . Robots Melted . | . . . . . . . . . . . . . . . . . . Combat Hostiles . | . . . . . . . . . . . . . . . . . . Parts Melted 3 | . . . . 1 1 1 . . . . . . . . . . . Heat Transferred 4323 | . 150 740 . 250 1739 605 . 204 . . . . 74 . . . 561 Parts Sabotaged . | . . . . . . . . . . . . . . . . . . Parts Stolen . | . . . . . . . . . . . . . . . . . . Parts Stripped . | . . . . . . . . . . . . . . . . . . Power Chain Reactions . | . . . . . . . . . . . . . . . . . . Missiles Intercepted . | . . . . . . . . . . . . . . . . . . Alert | -11 -10 -10 -10 -9 -8 -7 -7 -7 -7 -7 -7 -6 -6 -6 -6 -6 -6 ------- Run | Scr Mat Min Exi Min Mat Fac Was Fac Low Low Dat Pro Fac Low Low Zio Dee Peak Influence 738 | 5 261 188 . 45 510 553 217 670 . . . . 738 . . . . Initial 231 | . 3 39 . . . 231 193 . . . . . . . . . . Average 198 | . 101 80 . 15 189 280 102 247 . . . . 358 . . . . Maximum Alert Level 3 | . 1 . . . 2 2 1 2 . . . . 3 . . . . Low Security (%) 58 | 100 83 100 . 100 59 22 95 56 . . . . 18 . . . . Level 1 27 | . 16 . . . 26 63 4 6 . . . . 52 . . . . Level 2 11 | . . . . . 14 14 . 36 . . . . 16 . . . . Level 3 2 | . . . . . . . . . . . . . 12 . . . . Level 4 . | . . . . . . . . . . . . . . . . . . Level 5 . | . . . . . . . . . . . . . . . . . . High Security . | . . . . . . . . . . . . . . . . . . Max Security . | . . . . . . . . . . . . . . . . . . Squads Dispatched 19 | . 2 . . 1 . 4 . 5 . . . . 7 . . . . Investigation 6 | . 2 . . 1 . 1 . 1 . . . . 1 . . . . Extermination 7 | . . . . . . 2 . 1 . . . . 4 . . . . Reinforcement 4 | . . . . . . . . 2 . . . . 2 . . . . Assault 1 | . . . . . . . . 1 . . . . . . . . . Garrison 1 | . . . . . . 1 . . . . . . . . . . . Intercept . | . . . . . . . . . . . . . . . . . . Construction Impeded 2 | . . . . . . . . 2 . . . . . . . . . Haulers Reinforced . | . . . . . . . . . . . . . . . . . . Stealth | -11 -10 -10 -10 -9 -8 -7 -7 -7 -7 -7 -7 -6 -6 -6 -6 -6 -6 --------- Run | Scr Mat Min Exi Min Mat Fac Was Fac Low Low Dat Pro Fac Low Low Zio Dee Distress Signals 8 | . 2 1 . . 2 1 . . . . . . 2 . . . . Communications Jammed . | . . . . . . . . . . . . . . . . . . Distress Signals . | . . . . . . . . . . . . . . . . . . Times Spotted 245 | . 24 17 . 3 42 21 6 19 6 3 . 1 29 3 4 . 67 Peak Tracking Total 13 | . 4 5 . 3 5 4 5 5 4 3 . 1 4 3 4 . 13 Tactical Retreats 21 | . 2 2 . . 2 1 . 1 2 1 . . 3 1 . . 6 Traps | -11 -10 -10 -10 -9 -8 -7 -7 -7 -7 -7 -7 -6 -6 -6 -6 -6 -6 ------- Run | Scr Mat Min Exi Min Mat Fac Was Fac Low Low Dat Pro Fac Low Low Zio Dee Traps Triggered 13 | . . . . . . 3 . 3 . . . . 6 1 . . . Indirectly 5 | . . . . . . . . 1 . . . . 3 1 . . . Trap Hack Attempts . | . . . . . . . . . . . . . . . . . . Triggered . | . . . . . . . . . . . . . . . . . . Disarmed . | . . . . . . . . . . . . . . . . . . Reprogrammed . | . . . . . . . . . . . . . . . . . . Reused 2 | . . . . . . . . . . . . . . . . . 2 Traps Extracted . | . . . . . . . . . . . . . . . . . . Installed 5 | . . . . . . . . . . . . . . . . . 5 Triggered 3 | . . . . . 1 . . . . . . 1 1 . . . . Machines | -11 -10 -10 -10 -9 -8 -7 -7 -7 -7 -7 -7 -6 -6 -6 -6 -6 -6 ---------- Run | Scr Mat Min Exi Min Mat Fac Was Fac Low Low Dat Pro Fac Low Low Zio Dee Machines Disabled 28 | . . . . 1 3 6 . 5 . . . . 11 . . . 2 Max in Single Turn 6 | . . . . 1 2 4 . 1 . . . . 6 . . . 1 Garrison Access 4 | . . . . . 1 1 . 1 . . . . 1 . . . . Machines Sabotaged . | . . . . . . . . . . . . . . . . . . Garrisons Compromised . | . . . . . . . . . . . . . . . . . . Overloaded Fab Kills . | . . . . . . . . . . . . . . . . . . Fab Network Shutdowns 1 | . . . . . . . . . . . . . 1 . . . . Hacking | -11 -10 -10 -10 -9 -8 -7 -7 -7 -7 -7 -7 -6 -6 -6 -6 -6 -6 --------- Run | Scr Mat Min Exi Min Mat Fac Was Fac Low Low Dat Pro Fac Low Low Zio Dee Machines Accessed 66 | . 8 . 4 1 13 10 . 9 . . 4 . 17 . . . . Terminals 35 | . 7 . . . 9 6 . 4 . . . . 9 . . . . Fabricators 7 | . . . . . . 1 . 2 . . . . 4 . . . . Repair Stations 7 | . . . . . 2 1 . 2 . . . . 2 . . . . Recycling Units 2 | . 1 . . . . . . . . . . . 1 . . . . Scanalyzers 2 | . . . . . 1 1 . . . . . . . . . . . Garrison Access 4 | . . . . . 1 1 . 1 . . . . 1 . . . . Total Hacks 231 | . 33 . 4 1 48 44 . 25 . . 26 . 50 . . . . Successful 173 | . 21 . 4 1 32 31 . 19 . . 26 . 39 . . . . Failed 58 | . 12 . . . 16 13 . 6 . . . . 11 . . . . Catastrophic 2 | . . . . . 1 . . . . . . . 1 . . . . Database Lockouts . | . . . . . . . . . . . . . . . . . . Manual 79 | . 18 . 1 . 19 14 . 5 . . . . 21 . . 1 . Terminals 137 | . 32 . . . 31 28 . 11 . . . . 35 . . . . Fabricators 16 | . . . . . . 4 . 4 . . . . 8 . . . . Repair Stations 31 | . . . . . 12 7 . 8 . . . . 4 . . . . Recycling Units 3 | . 1 . . . . . . . . . . . 2 . . . . Scanalyzers 6 | . . . . . 3 3 . . . . . . . . . . . Garrison Access 7 | . . . . . 2 2 . 2 . . . . 1 . . . . Terminal Hacks 88 | . 13 . 4 1 10 12 . 7 . . 26 . 15 . . . . Record 16 | . 1 . 4 . . . . . . . 11 . . . . . . Part Schematic 7 | . . . . . . . . . . . 6 . 1 . . . . Robot Schematic 6 | . . . . . . . . . . . 6 . . . . . . Robot Analysis 4 | . 3 . . . . . . . . . . . 1 . . . . Prototype ID Bank 18 | . 5 . . . 4 2 . 1 . . 3 . 3 . . . . Open Door 1 | . . . . 1 . . . . . . . . . . . . . Branch Access Points 4 | . . . . . 1 1 . 1 . . . . 1 . . . . Machine Index 2 | . . . . . . 1 . . . . . . 1 . . . . Terminal Index 2 | . 1 . . . . 1 . . . . . . . . . . . Repair Station Index 1 | . . . . . . 1 . . . . . . . . . . . Alert Level 3 | . . . . . 1 1 . 1 . . . . . . . . . Unreport Threat 3 | . 1 . . . . . . 1 . . . . 1 . . . . Locate Traps 13 | . 1 . . . 3 3 . 3 . . . . 3 . . . . Recall Reinforcements 1 | . . . . . . . . . . . . . 1 . . . . Hauler Manifests 4 | . 1 . . . 1 1 . . . . . . 1 . . . . Zone Layout 3 | . . . . . . 1 . . . . . . 2 . . . . Fabricator Hacks 9 | . . . . . . 2 . 2 . . . . 5 . . . . Load Schematic 5 | . . . . . . 1 . 1 . . . . 3 . . . . Build 4 | . . . . . . 1 . 1 . . . . 2 . . . . Repair Station Hacks 27 | . . . . . 12 6 . 5 . . . . 4 . . . . Scan Component 14 | . . . . . 6 3 . 3 . . . . 2 . . . . Repair 13 | . . . . . 6 3 . 2 . . . . 2 . . . . Recycling Unit Hacks 1 | . . . . . . . . . . . . . 1 . . . . Retrieve Components 1 | . . . . . . . . . . . . . 1 . . . . Scanalyzer 3 | . . . . . 2 1 . . . . . . . . . . . Insert Component 2 | . . . . . 1 1 . . . . . . . . . . . Analyze 1 | . . . . . 1 . . . . . . . . . . . . Garrison Access Hacks 3 | . . . . . 1 1 . . . . . . 1 . . . . Seal Access 3 | . . . . . 1 1 . . . . . . 1 . . . . Unauthorized Hacks 42 | . 8 . . . 7 9 . 5 . . . . 13 . . . . Terminals 38 | . 7 . . . 7 8 . 4 . . . . 12 . . . . Track 18 | . 4 . . . 4 4 . 2 . . . . 4 . . . . Assimilate 3 | . . . . . 1 . . . . . . . 2 . . . . Botnet 15 | . 2 . . . 2 3 . 2 . . . . 6 . . . . Operators 2 | . 1 . . . . 1 . . . . . . . . . . . Fabricators . | . . . . . . . . . . . . . . . . . . Repair Stations . | . . . . . . . . . . . . . . . . . . Recycling Units 2 | . 1 . . . . . . . . . . . 1 . . . . Tunnel 2 | . 1 . . . . . . . . . . . 1 . . . . Scanalyzers 1 | . . . . . . 1 . . . . . . . . . . . Extract 1 | . . . . . . 1 . . . . . . . . . . . Garrison Access 1 | . . . . . . . . 1 . . . . . . . . . Jam 1 | . . . . . . . . 1 . . . . . . . . . Data Cores Recovered . | . . . . . . . . . . . . . . . . . . Used . | . . . . . . . . . . . . . . . . . . Hacking Detections 51 | . 7 . . . 10 9 . 9 . . . . 16 . . . . Full Trace Events 1 | . 1 . . . . . . . . . . . . . . . . Feedback Events . | . . . . . . . . . . . . . . . . . . Feedback Blocked . | . . . . . . . . . . . . . . . . . . Robot Schematics Acquired 6 | . . . . . . . . . . . 6 . . . . . . Robots Built . | . . . . . . . . . . . . . . . . . . Matter . | . . . . . . . . . . . . . . . . . . Time . | . . . . . . . . . . . . . . . . . . Total Robot Build Rating . | . . . . . . . . . . . . . . . . . . Part Schematics Acquired 13 | . . . . . 1 5 . . . . 6 . 1 . . . . Parts Built 5 | . . . . . . 1 . 1 . . . . 3 . . . . Matter 822 | . . . . . . 146 . 146 . . . . 530 . . . . Time 294 | . . . . . . 36 . 36 . . . . 222 . . . . Total Part Build Rating 24 | . . . . . . 3 . 3 . . . . 18 . . . . Parts Repaired 13 | . . . . . 6 3 . 2 . . . . 2 . . . . Time 604 | . . . . . 271 195 . 100 . . . . 38 . . . . Parts Recycled . | . . . . . . . . . . . . . . . . . . Recycled Matter . | . . . . . . . . . . . . . . . . . . Retrieved Matter . | . . . . . . . . . . . . . . . . . . Retrieved Components 10 | . . . . . . . . . . . . . 10 . . . . Parts Scanalyzed 1 | . . . . . 1 . . . . . . . . . . . . Part Schematics Acquired 1 | . . . . . 1 . . . . . . . . . . . . Parts Damaged 1 | . . . . . 1 . . . . . . . . . . . . Bothacking | -11 -10 -10 -10 -9 -8 -7 -7 -7 -7 -7 -7 -6 -6 -6 -6 -6 -6 ------------ Run | Scr Mat Min Exi Min Mat Fac Was Fac Low Low Dat Pro Fac Low Low Zio Dee Used RIF Installer . | . . . . . . . . . . . . . . . . . . Robots Hacked . | . . . . . . . . . . . . . . . . . . Non-combat . | . . . . . . . . . . . . . . . . . . Combat . | . . . . . . . . . . . . . . . . . . Robot Hacks Applied . | . . . . . . . . . . . . . . . . . . Relay Couplers Released 3 | . . . . . . . . 3 . . . . . . . . . Programmers 3 | . . . . . . . . 3 . . . . . . . . . Robots Rewired . | . . . . . . . . . . . . . . . . . . Allies Hacked 5 | . . . . . . 3 . 2 . . . . . . . . . Hacks Repelled . | . . . . . . . . . . . . . . . . . . Allies | -11 -10 -10 -10 -9 -8 -7 -7 -7 -7 -7 -7 -6 -6 -6 -6 -6 -6 -------- Run | Scr Mat Min Exi Min Mat Fac Was Fac Low Low Dat Pro Fac Low Low Zio Dee Total Allies 29 | . . 3 . . 1 3 19 . . . . 1 . . . 2 . Largest Group 18 | . . 3 . . 1 3 18 14 4 2 . 1 1 . . 2 2 Highest-Rated Group 446 | . . 40 . . 10 93 446 369 95 55 . 94 94 . . 188 188 Highest-Rated Ally 94 | . . 16 . . 10 31 35 35 31 31 . 94 94 . . 94 94 Total Orders . | . . . . . . . . . . . . . . . . . . Ally Attacks 470 | . . 27 . . . 69 104 177 4 . . 1 43 . . . 45 Total Damage 9791 | . . 277 . . . 1071 2792 2642 75 . . 60 1460 . . . 1414 Kills 70 | . . 4 . . . 10 8 23 1 . . 1 12 . . . 11 Allies Corrupted 2 | . . 1 . . . 1 . . . . . . . . . . . Allies Melted . | . . . . . . . . . . . . . . . . . . Intel | -11 -10 -10 -10 -9 -8 -7 -7 -7 -7 -7 -7 -6 -6 -6 -6 -6 -6 ------- Run | Scr Mat Min Exi Min Mat Fac Was Fac Low Low Dat Pro Fac Low Low Zio Dee Robot Analysis Total 4 | . 3 . . . . . . . . . . . 1 . . . . Derelict Logs Recovered 9 | . . 1 . 2 . . . . 1 . . 1 . 1 1 2 . Drone Launches . | . . . . . . . . . . . . . . . . . . Drone Recoveries . | . . . . . . . . . . . . . . . . . . Exploration | -11 -10 -10 -10 -9 -8 -7 -7 -7 -7 -7 -7 -6 -6 -6 -6 -6 -6 ------------- Run | Scr Mat Min Exi Min Mat Fac Was Fac Low Low Dat Pro Fac Low Low Zio Dee Turns Passed 22436 | 73 1539 1187 963 910 2552 1751 745 1061 870 478 106 472 2351 306 511 1790 4771 Spaces Moved 13375 | 57 847 584 496 495 1216 850 435 670 548 340 82 332 1545 219 344 1398 2917 Core 510 | 27 . . . . . . . . . . . . . . . . 483 Treads 2800 | . 519 584 496 88 628 485 . . . . . . . . . . . Legs 115 | . . . . . . . . . . . . . . . . . 115 Wheels 8409 | 30 328 . . 407 588 365 435 670 548 340 82 332 1545 219 344 1285 891 Hover . | . . . . . . . . . . . . . . . . . . Flight 1541 | . . . . . . . . . . . . . . . . 113 1428 Fastest Speed 27 | 50 80 160 160 120 120 130 130 130 100 130 130 130 130 130 130 27 27 Average Speed 127 | 84 136 176 192 131 155 166 153 130 128 130 130 130 130 130 130 121 74 Slowest Speed 240 | 150 180 180 200 200 240 200 170 130 130 140 130 130 130 130 130 130 197 Overloaded Moves . | . . . . . . . . . . . . . . . . . . Propulsion Burnouts . | . . . . . . . . . . . . . . . . . . Robots Hopped . | . . . . . . . . . . . . . . . . . . Cave-ins Triggered . | . . . . . . . . . . . . . . . . . . Exploration Rate (%) 60 | 4 96 84 91 57 89 24 96 21 63 53 68 50 38 41 58 83 81 Regions Visited 17 Branch Regions 11 Pre-discovered Areas 7 | . 1 . . . . . . . . . 1 1 1 . . 3 . Known Exits Taken 10 | . . . . . 1 . . 1 1 1 1 1 1 1 1 1 . Unknown Exits Taken 5 | 1 1 1 1 1 . . . . . . . . . . . . . Scrap Searched 16 | . . 3 . 2 . . . . 2 2 . 1 . 2 2 2 . Spaces Dug 109 | . 4 . . . 8 2 . . 1 9 . . 27 1 38 5 14 Terrain Destroyed 542 | . 5 . . 5 61 50 65 5 18 9 . . 95 1 38 5 185 Melee 30 | . . . . . 6 . . . . . . . 11 1 3 5 4 Projectile 82 | . 5 . . . 6 13 1 5 18 9 . . . . . . 25 AOE 430 | . . . . 5 49 37 64 . . . . . 84 . 35 . 156 Terrain Rammed . | . . . . . . . . . . . . . . . . . . Walls Destroyed . | . . . . . . . . . . . . . . . . . . Machines Disabled . | . . . . . . . . . . . . . . . . . . Actions | -11 -10 -10 -10 -9 -8 -7 -7 -7 -7 -7 -7 -6 -6 -6 -6 -6 -6 --------- Run | Scr Mat Min Exi Min Mat Fac Was Fac Low Low Dat Pro Fac Low Low Zio Dee Total 17868 | 73 1090 664 503 733 1665 1072 488 831 670 361 81 373 1813 229 401 1463 5358 Wait 3264 | . 128 28 . 212 227 95 20 129 47 2 . 38 115 . 51 3 2169 Move 13359 | 56 846 583 495 494 1215 850 434 669 547 339 81 331 1544 218 343 1397 2917 Hop . | . . . . . . . . . . . . . . . . . . Pick Up 224 | 6 14 . 6 10 37 15 8 7 30 2 . 2 19 . . 20 48 Fast Attach 44 | 6 2 . 1 . 2 3 . . . . . . 3 . . 11 16 Attach 67 | 1 1 4 . 1 10 6 3 2 5 1 . . 9 1 . . 23 Detach 6 | . . . . . . . . . 2 . . . 2 . . . 2 Swap 145 | . 21 3 . 5 32 17 6 8 9 3 . . 21 2 3 1 14 Drop 158 | 1 9 1 1 . 28 13 6 3 8 3 . 2 15 . . 13 55 Fire 459 | 3 69 45 . 11 106 65 11 13 22 11 . . 36 7 1 . 59 Melee 97 | . . . . . 8 . . . . . . . 17 1 3 18 50 Ram . | . . . . . . . . . . . . . . . . . . Kick . | . . . . . . . . . . . . . . . . . . Crush . | . . . . . . . . . . . . . . . . . . Escape Stasis 40 | . . . . . . 8 . . . . . . 32 . . . . Rewire . | . . . . . . . . . . . . . . . . . . Trap 5 | . . . . . . . . . . . . . . . . . 5 Miscellaneous . | . . . . . . . . . . . . . . . . . . Route ------- -11/Scrapyard -10/Materials (discovered 4 exits: [*Mat x3] / [*Min]) -10/Mines (discovered 3 exits: [*Mat x2] / *Exi) -10/Exiles -9/Mines -8/Materials (discovered 3 exits: *Fac x3) -7/Factory (discovered 3 exits: Sto / Low x2) -7/Waste -7/Factory (discovered 4 exits: *Fac / Sto / *Low x2) -7/Lower Caves -7/Lower Caves -7/Data Miner -6/Proximity Caves -6/Factory (discovered 4 exits: *Fac x2 / *Low x2) -6/Lower Caves -6/Lower Caves -6/Zion (discovered 2 exits: *Dee / [*Pro]) -6/Deep Caves (discovered 1 exit: [*Pro]) History --------- Turn | Location | Event 4 | -11/Scrapyard | Discovered new exit (range 14) 74 | -11/Scrapyard | Entered Materials 310 | -10/Materials | Build established: Mutant 622 | -10/Materials | Discovered new exit (range 9) 679 | -10/Materials | Discovered new exit (range 16) 864 | -10/Materials | Discovered new exit (range 16) 1378 | -10/Materials | Discovered new exit (range 11) 1613 | -10/Materials | Entered Mines 1619 | -10/Mines | Assisted by bots powering up and referring to "LRC-V3" 1653 | -10/Mines | Discovered new exit (range 11) 1731 | -10/Mines | Core integrity fell below 50% 1969 | -10/Mines | Deemed a non-threat by the Exiles lab entrance 1969 | -10/Mines | Discovered new exit (range 5) 2082 | -10/Mines | Learned Materials terminal intel 2140 | -10/Mines | Discovered new exit (range 11) 2513 | -10/Mines | Excavation squad dispatched 2513 | -10/Mines | A large section of the Mines collapsed 2572 | -10/Mines | Lost 4 parts (2n1u1w) 2654 | -10/Mines | Core integrity fell below 20% 2800 | -10/Mines | Entered Exiles 2800 | -10/Exiles | Found Exiles lab abandoned 2935 | -10/Exiles | Build established: Scavenger-Mutant 3248 | -10/Exiles | Build established: Hauler-Mutant 3737 | -10/Exiles | Discovered new exit (range 15) 3763 | -10/Exiles | Entered Mines 3772 | -9/Mines | Met a Derelict shopkeep closing up shop 3869 | -9/Mines | Assembled infested the area 3874 | -9/Mines | Assisted by a Guerilla fighting off Assembled 4357 | -9/Mines | Learned 4 Materials zone layouts 4569 | -9/Mines | Discovered new exit (range 6) 4575 | -9/Mines | Learned 4 Materials zone layouts 4648 | -9/Mines | Found a damaged Exp. Sensor Array with a note attached 4651 | -9/Mines | Found Prototype Device 4673 | -9/Mines | Entered Materials 4673 | -8/Materials | Evolved 4 slots: Utility x3, Weapon x1 4674 | -8/Materials | Identified exit to Factory 4674 | -8/Materials | Identified Exp. Sensor Array 4675 | -8/Materials | Loaded intel: 12 terminal locations 4974 | -8/Materials | Build established: Hauler-Tank 5855 | -8/Materials | Discovered exit to Factory (range 11) 6262 | -8/Materials | Repaired Lyr. Light Armor Plating 6292 | -8/Materials | Repaired Exp. Sensor Array 6315 | -8/Materials | Repaired Hvy. Ion Engine 6337 | -8/Materials | Repaired Med. Treads 6349 | -8/Materials | Repaired Lgt. Armor Plating 6365 | -8/Materials | Repaired Lgt. Armor Plating 7225 | -8/Materials | Entered Factory 7225 | -7/Factory | Evolved 2 slots: Utility x2 7345 | -7/Factory | Repaired Broken Exp. Sensor Array? 7425 | -7/Factory | Repaired Lyr. Light Armor Plating? 7510 | -7/Factory | Repaired Hvy. Ion Engine 7532 | -7/Factory | Build established: Hauler-Mutant 7610 | -7/Factory | Allied Derelicts emerged from ambush trap array 8041 | -7/Factory | Fabricated Hrd. Medium Armor Plating (x1) 8647 | -7/Factory | Found Prototype Launcher 8648 | -7/Factory | Identified Rocket Array 8653 | -7/Factory | Found Rocket Array 8657 | -7/Factory | Found Rocket Array 8723 | -7/Factory | Identified exit to Storage 8723 | -7/Factory | Identified exit to Lower Caves 8782 | -7/Factory | Garrison activated, responded to threat 8976 | -7/Factory | Sucked down chute 8976 | -7/Factory | Entered Waste 8977 | -7/Waste | Met a frightened Derelict 9017 | -7/Waste | Spotted C-40 Crusher 9027 | -7/Waste | Spotted C-40 Crusher 9032 | -7/Waste | Destroyed C-40 Crusher 9063 | -7/Waste | Spotted C-40 Crusher 9085 | -7/Waste | Spotted C-40 Crusher 9101 | -7/Waste | Spotted C-40 Crusher 9115 | -7/Waste | Crushed by Compactor (1 part destroyed, 1 dropped) 9160 | -7/Waste | Spotted C-40 Crusher 9182 | -7/Waste | Warlord forces began an assault 9184 | -7/Waste | Allies destroyed C-40 Crusher 9189 | -7/Waste | Allies destroyed C-40 Crusher 9195 | -7/Waste | Allies destroyed C-40 Crusher 9506 | -7/Waste | Discovered new exit (range 16) 9702 | -7/Waste | Identified exit to Factory 9721 | -7/Waste | Entered Factory 9721 | -7/Factory | Accompanied by 14 allies 9864 | -7/Factory | Build established: Hauler-Skirmisher 10140 | -7/Factory | Discovered new exit (range 12) 10177 | -7/Factory | Identified exit to Factory 10213 | -7/Factory | Repaired Adv. Salvage Targeting Computer 10265 | -7/Factory | Repaired Flak Gun 10521 | -7/Factory | First assault squad dispatched 10591 | -7/Factory | Fabricated Hrd. Medium Armor Plating (x1) 10782 | -7/Factory | Entered Lower Caves 10782 | -7/Lower Caves | Accompanied by 6 allies 10788 | -7/Lower Caves | Attracted the attention of an 0b10 checkpoint 10816 | -7/Lower Caves | Encountered a Warlord checkpoint 11041 | -7/Lower Caves | Ambushed by wild Derelicts 11094 | -7/Lower Caves | Lost 5 parts (3u2w) 11251 | -7/Lower Caves | Learned 8 Factory zone layouts 11296 | -7/Lower Caves | Discovered new exit (range 14) 11649 | -7/Lower Caves | Identified exit to Lower Caves 11652 | -7/Lower Caves | Entered another Lower Caves area 11652 | -7/Lower Caves | Accompanied by 2 allies 11702 | -7/Lower Caves | Encountered a Warlord checkpoint 12118 | -7/Lower Caves | Discovered new exit (range 9) 12127 | -7/Lower Caves | Identified exit to Data Miner 12130 | -7/Lower Caves | Entered Data Miner 12130 | -7/Data Miner | Discovered new exit (range 6) 12153 | -7/Data Miner | Build established: Hauler-Mutant 12155 | -7/Data Miner | Met Data Miner 12189 | -7/Data Miner | Learned location of Section 7 (-2) 12189 | -7/Data Miner | Acquired the access code to Warlord's prototype stash 12201 | -7/Data Miner | Received God Mode back door access code from Data Miner 12234 | -7/Data Miner | Identified exit to Proximity Caves 12236 | -7/Data Miner | Entered Proximity Caves 12575 | -6/Proximity Caves | Escorted by Enhanced Grunt 12667 | -6/Proximity Caves | Learned location of Zion (-6) 12697 | -6/Proximity Caves | Discovered exit to Factory (range 9) 12708 | -6/Proximity Caves | Entered Factory 12708 | -6/Factory | Accompanied by 1 ally 12708 | -6/Factory | Evolved 2 slots: Utility x2 12709 | -6/Factory | Identified exit to Lower Caves 12709 | -6/Factory | Identified exit to Factory 12842 | -6/Factory | Repaired Flak Gun 13390 | -6/Factory | Fabricated Exp. Cesium-ion Thruster (x1) 13595 | -6/Factory | Discovered exit to Factory (range 15) 13655 | -6/Factory | Build established: Hacker-Mutant 14411 | -6/Factory | Fabricated Imp. Plasma Cutter (x2) 14496 | -6/Factory | Local fabrication network quarantined 14681 | -6/Factory | Repaired Arm. Wheel? 15037 | -6/Factory | Incoming investigation squad redirected 15059 | -6/Factory | Entered Lower Caves 15066 | -6/Lower Caves | Learned Factory stockpile data 15357 | -6/Lower Caves | Discovered new exit (range 7) 15364 | -6/Lower Caves | Identified exit to Lower Caves 15365 | -6/Lower Caves | Entered another Lower Caves area 15693 | -6/Lower Caves | Learned Factory emergency access door positions 15773 | -6/Lower Caves | Encountered a Warlord checkpoint 15865 | -6/Lower Caves | Discovered new exit (range 8) 15875 | -6/Lower Caves | Identified exit to Zion 15876 | -6/Lower Caves | Entered Zion 15935 | -6/Zion | System corruption cleaned by Quarantine Array 15953 | -6/Zion | Discovered new exit (range 15) 16195 | -6/Zion | Learned Factory security intel 16269 | -6/Zion | Received a hallucinogenic algorithm 16317 | -6/Zion | Learned location of Armory (-4) 16349 | -6/Zion | Given A8's code to call for help 16411 | -6/Zion | Found CR-A16's Pointy Stick 16452 | -6/Zion | Learned Factory trap positions 16481 | -6/Zion | Learned location of Warlord (-4) 16695 | -6/Zion | Given the Hacking Drone Bay 17483 | -6/Zion | Enhanced Grunt warped into view, answering call for help 17492 | -6/Zion | Enhanced Grunt warped into view, answering call for help 17530 | -6/Zion | Discovered new exit (range 4) 17533 | -6/Zion | Saw the warning signs outside the Deep Caves entrance 17659 | -6/Zion | Identified exit to Deep Caves 17666 | -6/Zion | Entered Deep Caves 17666 | -6/Deep Caves | Accompanied by 2 allies 17837 | -6/Deep Caves | Build established: Hauler-Mutant 17969 | -6/Deep Caves | Attacked by Z-Imprinter 17982 | -6/Deep Caves | Allies destroyed Z-Imprinter 18269 | -6/Deep Caves | Z-Facility disabled 18364 | -6/Deep Caves | Build established: Hacker-Sprinter 18628 | -6/Deep Caves | Found Prototype Protection 18629 | -6/Deep Caves | Identified Zio. Weapon Casing 18955 | -6/Deep Caves | Build established: Hauler-Mutant 19087 | -6/Deep Caves | Discovered new exit (range 7) 19372 | -6/Deep Caves | Spotted as-95570 19377 | -6/Deep Caves | Destroyed as-95570 19493 | -6/Deep Caves | Exposed GOLEM chamber 19521 | -6/Deep Caves | Found GOLEM Unit 19653 | -6/Deep Caves | Found GOLEM Unit 19656 | -6/Deep Caves | Triggered Deep Caves wall 19832 | -6/Deep Caves | Lost 10 parts (1p2n5u2w) 19853 | -6/Deep Caves | Destroyed 15 combat bots 19969 | -6/Deep Caves | Build established: Golem 20422 | -6/Deep Caves | Spotted AS-22263 20431 | -6/Deep Caves | Core integrity fell below 50% 20451 | -6/Deep Caves | Spotted AS-70611 20467 | -6/Deep Caves | Core integrity fell below 20% 20469 | -6/Deep Caves | Destroyed AS-70611 20509 | -6/Deep Caves | Lost 16 parts (2n9u5w) 20734 | -6/Deep Caves | Build established: Mutant 21171 | -6/Deep Caves | Build established: Golem 21713 | -6/Deep Caves | Build established: Mutant 22437 | -6/Deep Caves | Destroyed by as-83175 with Assembled P-torch Last Messages --------------- 22243_ Acquired 6 matter. 22255_ System corrupted: Substantial component data lost. 22271_ System corrupted: Component data lost. 22288_ Acquired Exp. Sensor Array. 22289_ Discarded Asb. Nanovents. 22320_ System corrupted: FCS attempts to trigger Asb. Focal Cannon. 22320_ System corrupted: Asb. Focal Cannon misfires. 22347_ System corrupted: Heat flow error (+141). 22395_ System corrupted: Heat flow error (+162). 22419_ Destroyed Asb. Hover System. 22421_ as-82882 destroyed. 22423_ Acquired 19 matter. 22425_ Penetrated by Slug. 22431_ Asb. Nanovents destroyed. 22433_ Penetrated by Slug. 22433_ Asb. Nanovents destroyed. 22434_ GOLEM Unit beginning Asb. Nanovents integration. 22435_ Asb. Nanovents integration complete. 22436_ GOLEM Unit beginning Asb. Nanovents integration. 22437_ Asb. Nanovents integration complete. Map ----- +----------------------------------------------------+ | | | | | | | ?????????????????????????????????????????######### | | ?????????????????????????????????????????# [ =!!= | | ??????????????????????????????###????????# | | ????????????????????????????## ##???????# ####### | | ????????????????????######### ##?????## ###???? | | ???????????????????## #???### ####? | | ?????????????####### #???# # | | ?????????????# ## ##### ##???# | | ?????????????# ##??## #????## | | ????????????## #???## #???# # | | ###????????## ####?? #???# ## | | #####???## ##### ### ### ##???# # | | #??## #???###### ####????# # | | #??# ##???????# #?????## # | | ##??# #####???# #?????# | | ##?## #????# #?????#!*# | | ### #?????# ##????## ## | | !=!##????# ##????# # | | # ! ! ###?## #????# # | | # ### ##### !=! ### #????# ## | | # #?####???## ##???# ## | | # #?????????## ;#??## # | | # #??????????## @ #???# | | #???????????## ## #???# | | #????????????## a ### #???# | | ####?????????????#### a #### #???## | | ?????????????????#### a # # #????### | | ##?????????????### ; #a # # #??????# | | ##?????##????## a## # ## #??????## | | #?????# #??# # # #???????# | | ##?????# ### a### # ## ##????##### | | ? ######## #! ### # ##????## ## | | ? ! !! ##???# ## | | !=] ## ## #???# # | | #### ##### !]=!= # ## ##?## | | ???# #?##= !![# # ## ### | | ?### ### ]=!!!## ##### | | ## ## !!!]## #??# # | | ## =! ### #??# # # | | # #### [/ ### #### # # ## | | ######??## ! ## ## ## | | ?????????## ## ###### | | ??????????###### ###????# | | ???????????????# ####????## | | ???????????????# # ## #?????# | | ???????????????# #### # # ##?????# | | ???????????????###### # ######??????## | +----------------------------------------------------+ Best States ------------- Heat Dissipation 82 Energy Generation 27 Energy Capacity 1310 Matter Stores 418 Matter Capacity 450 Sight Range 16 Robot Scan Range 30 Terrain Scan Density 10 Additional Mass Support 10 EM Shielding 2 Armor Coverage 625 Resistance: KI 15 Resistance: TH 15 Resistance: EX 15 Resistance: EM 15 Resistance: I 15 Resistance: S 15 Resistance: P 15 Utility Shielding 66 Weapon Shielding 100 Phase Shifting 8 Evasion (%) 64 Targeting Accuracy 8 Core Analysis 8 Recoil Reduction 2 Offensive Hacking 30 Defensive Hacking 12 Item Schematics ----------------- Exp. Sensor Array | -8/Materials | Scanalyzed Hrd. Medium Armor Plating | -7/Factory | Extracted Imp. Salvage Targeting Computer | -7/Factory | Extracted Hacking Suite | -7/Factory | Extracted Target Analyzer | -7/Factory | Extracted Med. Treads | -7/Factory | Extracted Combat Drone Bay | -7/Data Miner | Free Lgt. Regenerative Plating | -7/Data Miner | Free Cmb. Gravmag System | -7/Data Miner | Free Exp. Cesium-ion Thruster | -7/Data Miner | Free Mni. Smartbomb Launcher | -7/Data Miner | Free Kinetic Spear | -7/Data Miner | Free Imp. Plasma Cutter | -6/Factory | Hacked Robot Schematics ------------------ S-27 Virus | -7/Data Miner | Free G-50 Soldier | -7/Data Miner | Free X-72 Disruptor | -7/Data Miner | Free P-70 Sage | -7/Data Miner | Free I-36 Angel | -7/Data Miner | Free I-47 Archangel | -7/Data Miner | Free Fabricated ------------ Hrd. Medium Armor Plating | x1 | -7/Factory Hrd. Medium Armor Plating | x1 | -7/Factory Exp. Cesium-ion Thruster | x1 | -6/Factory Imp. Plasma Cutter | x2 | -6/Factory Alien Tech Used ----------------- None Achievements -------------- None Challenges ------------ None Game ------ Seed WarpThunderMatter Manual? 0 Play Time 04:49:02 Cumulative 217.8 hours Start 2020.12.14 @ 19:08:38 End 2020.12.15 @ 01:35:44 Sessions 5 Manual Loads 0 Difficulty Rogue Special Mode None Game No. 85 Rogue 81 Adventurer 4 Explorer 0 Win Type - Total 2 Types 2/0/0/0/0/0/0/0/0 Lore% 61 Gallery% 71 Achievement% 53 Wizard Run 0 Options --------- ASCII 1 Keyboard 0 Movement Arrows Keybinds 0 Fullscreen 1 Font 16/CogWide Map View 76x50 Tactical HUD 1 Map Filters NONE Filters NONE Steam 1 RUN: 7d9f968b-9689-44b4-9203-0950f1b4c250